Cogmind - Beta 14 @@@ ROGUE MODE // 2024.11.21 @ 04:50:12 Player: Fangrelle Result: Destroyed by G-47 Trooper with Particle Gun Performance ------------- Evolutions (0) 0 Regions Visited (2) 400 Robots Destroyed (23) 115 Value Destroyed (562) 562 Prototype IDs (0) 0 Alien Tech Used (0) 0 Bonus (0) 0 TOTAL SCORE: 1077 Bonus ------- None Cogmind --------- Core Integrity 0/250 Matter 281/300 Energy 100/100 System Corruption 0% Temperature Cool (33) Movement Rolling (110) Ox2 Location -10/Mines Parts ------- > --- POWER (1) -------- (None) > --- PROPULSION (2) --- Wheel Wheel > --- UTILITY (2) ------ High-capacity Storage Unit Visual Processing Unit > --- WEAPON (2) ------- Small Laser Light Cannon > --- INVENTORY (20) --- Wheel Wheel Compact Wheel Heat Sink Large Storage Unit High-capacity Matter Pod (200) Visual Processing Unit Sensor Array Signal Interpreter Seismic Detector Datajack Mining Laser Heavy Explosive Trap Heavy Explosive Trap Heavy Explosive Trap Heavy Explosive Trap Heavy Explosive Trap Peak State ------------ > --- POWER ------------ Ion Engine > --- PROPULSION ------- Light Treads Light Treads > --- UTILITY ---------- Large Storage Unit Visual Processing Unit > --- WEAPON ----------- Small Laser Assault Rifle > --- INVENTORY -------- Ion Engine Wheel Wheel Compact Wheel Small Storage Unit Sensor Array Signal Interpreter EM Pulse Gun Medium Laser Mining Laser [Rating: 9] Favorites ----------- Power Ion Engine Engine Ion Engine Propulsion Light Treads Treads Light Treads Leg Aluminum Leg Wheel Wheel Utility Visual Processing Unit Storage Large Storage Unit Processor Visual Processing Unit Weapon Small Laser Energy Gun Small Laser Ballistic Gun Assault Rifle Ballistic Cannon Light Cannon Build | -11 -10 -10 ------- Run | Yrd Mat Min Slots Evolved . | . . . Power . | . . . Propulsion . | . . . Utility . | . . . Weapon . | . . . Parts Attached 20 | . 19 1 Power 5 | . 5 . Engine 5 | . 5 . Core . | . . . Reactor . | . . . Propulsion 7 | . 7 . Treads 3 | . 3 . Leg . | . . . Wheel 4 | . 4 . Hover . | . . . Flight . | . . . Utility 3 | . 3 . Device . | . . . Storage 2 | . 2 . Processor 1 | . 1 . Hackware . | . . . Protection . | . . . Artifact . | . . . Weapon 5 | . 4 1 Energy Gun 4 | . 4 . Energy Cannon . | . . . Ballistic Gun . | . . . Ballistic Cannon 1 | . . 1 Launcher . | . . . Special Weapon . | . . . Impact Weapon . | . . . Slashing Weapon . | . . . Piercing Weapon . | . . . Special Melee Weapon . | . . . Unidentified Prototypes . | . . . Parts Lost 8 | . 6 2 Power 3 | . 2 1 Propulsion 2 | . 2 . Utility . | . . . Weapon 3 | . 2 1 Highest Loss Streak 5 | . 5 1 To Critical Strikes . | . . . Average Slot Usage (%) 92 | . 90 100 Engine 13 | . 13 14 Treads 14 | . 17 . Leg 1 | . 1 . Wheel 9 | . 5 28 Storage 14 | . 14 14 Processor 10 | . 10 14 Energy Gun 18 | . 16 26 Ballistic Gun 9 | . 11 . Peak Build Rating 9 | . 9 9 Average Rating 7 | . 7 8 On Entrance 7 | 6 6 9 Naked Turns . | . . . Heaviest Build 49 | 11 48 49 Greatest Support 40 | 20 40 20 Greatest Overweight (x) 2 | . 2 2 Average Overweight (x) 1 | . . 2 Largest Inventory Capacity 20 | . 20 20 Average Capacity 14 | . 13 20 Most Carried 18 | . 15 18 Average Carried 11 | . 10 16 Final Capacity 20 | 8 20 20 Final Carried 17 | 6 13 17 Class Distribution -------------------- 100% | Mutant Dominant Class ---------------- Mutant | -10/Materials Mutant | -10/Mines Resources | -11 -10 -10 ----------- Run | Yrd Mat Min Matter Collected 759 | 200 537 22 Remotely . | . . . Salvage Created 762 | . 651 111 Parts 43 | . 40 3 Haulers Intercepted . | . . . Recyclers Shooed 1 | . 1 . Parts Field Recycled . | . . . Retrieved Matter . | . . . Parts Self-Destructed . | . . . Prevented . | . . . Kills | -11 -10 -10 ------- Run | Yrd Mat Min Combat Hostiles Destroyed 18 | . 15 3 Guns 16 | . 15 1 Cannons 2 | . . 2 Classes Destroyed 5 | . 5 . Worker 1 | . 1 . Recycler 1 | . 1 . Watcher 3 | . 3 . Swarmer 6 | . 6 . Grunt 12 | . 9 3 Best Kill Streak 4 | . 4 3 Combat Bots Only 3 | . 3 3 Max Kills in Single Turn 2 | . 2 1 Gunslinging . | . . . Exploded . | . . . Melee . | . . . Uniques/NPCs Destroyed . | . . . Combat | -11 -10 -10 -------- Run | Yrd Mat Min Hostile Shots Fired 144 | . 128 16 Missed 37 | . 35 2 Damage Taken 1084 | . 887 197 Core 252 | . 181 71 Absorbed by Shields . | . . . Core Remaining (%) 100 | 100 . . Volleys Fired 101 | . 88 13 Largest 2 | . 2 2 Hottest 90 | . 90 90 Shots Fired 181 | . 160 21 Gun 172 | . 160 12 Cannon 9 | . . 9 Launcher . | . . . Special . | . . . Kinetic 68 | . 59 9 Thermal 108 | . 96 12 Explosive . | . . . Electromagnetic 5 | . 5 . Robot Hit Streak 8 | . 7 8 Robot Miss Streak 3 | . 3 2 Penetration Max . | . . . Secondary Targets 1 | . 1 . Max Gunslinging Chain 1 | . 1 . Shots Hit Robots 117 | . 101 16 Core Hits 40 | . 33 7 Critical Kills . | . . . Critical Parts Destroyed . | . . . Critical Strikes 4 | . 3 1 Burn 4 | . 3 1 Melee Attacks . | . . . Impact . | . . . Slashing . | . . . Piercing . | . . . Sneak Attacks . | . . . Combat Hostiles . | . . . Follow-up Attacks . | . . . Damage Inflicted 1535 | . 1300 235 Guns 1409 | . 1300 109 Cannons 126 | . . 126 Explosions . | . . . Melee . | . . . Ramming . | . . . Kinetic 690 | . 564 126 Thermal 833 | . 724 109 Explosive . | . . . Electromagnetic 12 | . 12 . Impact . | . . . Slashing . | . . . Piercing . | . . . Highest Corruption . | . . . Average Corruption . | . . . Corruption Purged . | . . . Corruption Blocked . | . . . Overload Shots . | . . . Overflow Damage . | . . . Projectiles . | . . . Explosions . | . . . Melee . | . . . Knockbacks . | . . . Impact . | . . . Kinetic . | . . . Secondary . | . . . Self-Inflicted Damage . | . . . Shots . | . . . Rammed . | . . . Targets Rammed . | . . . Kicked . | . . . Crushed . | . . . Highest Temperature 196 | . 180 196 Average Temperature 45 | . 36 99 Received Heat Transfer 387 | . 279 108 Siege Activations . | . . . Robots Corrupted . | . . . Combat Hostiles . | . . . Parts Fried . | . . . Impact Corruptions . | . . . Robots Melted . | . . . Combat Hostiles . | . . . Parts Melted 4 | . 2 2 Heat Transferred 2320 | . 1997 323 Parts Sabotaged . | . . . Parts Stolen . | . . . Parts Stripped . | . . . Power Chain Reactions . | . . . Alert | -11 -10 -10 ------- Run | Yrd Mat Min Peak Influence 195 | . 195 108 Initial 48 | . . 48 Average 63 | . 66 52 Maximum Alert Level . | . . . Low Security (%) 100 | . 100 100 Level 1 . | . . . Level 2 . | . . . Level 3 . | . . . Level 4 . | . . . Level 5 . | . . . High Security . | . . . Max Security . | . . . Squads Dispatched 3 | . 3 . Investigation 3 | . 3 . Extermination . | . . . Reinforcement . | . . . Assault . | . . . Garrison . | . . . Intercept . | . . . Searches Triggered . | . . . Construction Impeded . | . . . Haulers Reinforced . | . . . Active Scanning Responses . | . . . Cargo Convoy Interrupts . | . . . Stealth | -11 -10 -10 --------- Run | Yrd Mat Min Distress Signals 2 | . 2 . Communications Jammed . | . . . Distress Signals . | . . . Times Spotted 28 | . 24 4 Peak Tracking Total 4 | . 4 2 Tactical Retreats 3 | . 3 . Traps | -11 -10 -10 ------- Run | Yrd Mat Min Traps Triggered 4 | . 4 . Indirectly . | . . . Trap Hack Attempts . | . . . Triggered . | . . . Disarmed . | . . . Reprogrammed . | . . . Reused . | . . . Traps Extracted . | . . . Installed . | . . . Triggered . | . . . Most Traps Carried 5 | . . 5 Machines | -11 -10 -10 ---------- Run | Yrd Mat Min Machines Disabled . | . . . Max in Single Turn . | . . . Machines Repaired . | . . . Machines Dismantled . | . . . Machines Sabotaged . | . . . Overloaded Fab Kills . | . . . Hacking | -11 -10 -10 --------- Run | Yrd Mat Min Machines Accessed 10 | . 10 . Terminals 8 | . 8 . Fabricators . | . . . Repair Stations . | . . . Recycling Units 2 | . 2 . Scanalyzers . | . . . Garrison Access . | . . . Total Hacks 31 | . 31 . Successful 20 | . 20 . Failed 11 | . 11 . Catastrophic . | . . . Database Lockouts . | . . . Manual 29 | . 29 . Terminals 27 | . 27 . Fabricators . | . . . Repair Stations . | . . . Recycling Units 4 | . 4 . Scanalyzers . | . . . Garrison Access . | . . . Terminal Hacks 2 | . 2 . Robot Analysis 2 | . 2 . Fabricator Hacks . | . . . Repair Station Hacks . | . . . Recycling Unit Hacks 2 | . 2 . Retrieve Components 2 | . 2 . Scanalyzer . | . . . Garrison Access Hacks . | . . . Unauthorized Hacks 16 | . 16 . Terminals 14 | . 14 . Assimilate 1 | . 1 . Botnet 7 | . 7 . Operators 1 | . 1 . Skim 5 | . 5 . Fabricators . | . . . Repair Stations . | . . . Recycling Units 2 | . 2 . Tunnel 2 | . 2 . Scanalyzers . | . . . Garrison Access . | . . . Data Cores Recovered . | . . . Used . | . . . Hacking Detections 8 | . 8 . Full Trace Events . | . . . Feedback Events . | . . . Feedback Blocked . | . . . Robot Schematics Acquired . | . . . Robots Built . | . . . Authchips . | . . . Time . | . . . Total Robot Build Rating . | . . . Part Schematics Acquired . | . . . Parts Built . | . . . Authchips . | . . . Time . | . . . Total Part Build Rating . | . . . Parts Repaired . | . . . Time . | . . . Parts Recycled . | . . . Recycled Matter . | . . . Retrieved Matter . | . . . Retrieved Components 18 | . 18 . Parts Scanalyzed . | . . . Part Schematics Acquired . | . . . Parts Damaged . | . . . Bothacking | -11 -10 -10 ------------ Run | Yrd Mat Min Used RIF Installer . | . . . Robots Hacked . | . . . Non-combat . | . . . Combat . | . . . Robot Hacks Applied . | . . . Relay Couplers Released . | . . . Fabnet Peak Effective % . | . . . Robots Rewired . | . . . Allies Hacked . | . . . Hacks Repelled . | . . . Allies | -11 -10 -10 -------- Run | Yrd Mat Min Total Allies . | . . . Largest Group . | . . . Highest-Rated Group . | . . . Highest-Rated Ally . | . . . Total Orders . | . . . Ally Attacks . | . . . Total Damage . | . . . Kills . | . . . Allies Corrupted . | . . . Allies Melted . | . . . Intel | -11 -10 -10 ------- Run | Yrd Mat Min Robot Analysis Total 2 | . 2 . Derelict Logs Recovered . | . . . Drone Launches . | . . . Drone Recoveries . | . . . Exploration | -11 -10 -10 ------------- Run | Yrd Mat Min Turns Passed 1833 | . 1518 315 Spaces Moved 1004 | 1 753 250 Core . | . . . Treads 479 | . 479 . Legs 70 | 1 69 . Wheels 455 | . 205 250 Hover . | . . . Flight . | . . . Fastest Speed 95 | 120 95 110 Average Speed 143 | 120 155 110 Slowest Speed 240 | 120 240 110 Overloaded Moves . | . . . Propulsion Burnouts . | . . . Robots Hopped . | . . . Cave-ins Triggered . | . . . Exploration Rate (%) 51 | 2 99 52 Regions Visited 2 Branch Regions 1 Pre-discovered Areas 2 | . 2 . Known Exits Taken . | . . . Unknown Exits Taken 2 | 1 1 . Scrap Searched 1 | . . 1 Spaces Dug . | . . . Terrain Destroyed . | . . . Melee . | . . . Projectile . | . . . AOE . | . . . Terrain Rammed . | . . . Walls Destroyed . | . . . Machines Disabled . | . . . Actions | -11 -10 -10 --------- Run | Yrd Mat Min Total 1208 | . 938 270 Wait 60 | . 59 1 Move 1002 | . 752 250 Hop . | . . . Pick Up 20 | . 15 5 Fast Attach 6 | . 6 . Attach 8 | . 7 1 Detach . | . . . Swap 6 | . 6 . Drop 5 | . 5 . Fire 101 | . 88 13 Melee . | . . . Ram . | . . . Kick . | . . . Crush . | . . . Escape Stasis . | . . . Rewire . | . . . Trap . | . . . Miscellaneous . | . . . Route ------- -11/Scrapyard -10/Materials (discovered 6 exits: [*Mat x3] / [*Min x2] / [*Sub]) -10/Mines History --------- Turn | Location | Event 1 | -11/Scrapyard | Discovered new exit (range 0) 1 | -11/Scrapyard | Entered Materials 308 | -10/Materials | Build established: Mutant 477 | -10/Materials | Discovered new exit (range 5) 576 | -10/Materials | Discovered new exit (range 8) 650 | -10/Materials | Discovered new exit (range 8) 1035 | -10/Materials | Discovered new exit (range 9) 1115 | -10/Materials | Discovered new exit (range 4) 1208 | -10/Materials | Core integrity fell below 50% 1247 | -10/Materials | Lost 5 parts (2p1n2w) 1301 | -10/Materials | Discovered new exit (range 9) 1519 | -10/Materials | Entered Mines 1613 | -10/Mines | Found a hidden stash of uninstalled traps 1799 | -10/Mines | Core integrity fell below 20% 1834 | -10/Mines | Destroyed by G-47 Trooper with Particle Gun Last Messages --------------- 01473_ K-01 Serf collects debris. 01505_ K-01 Serf cleans the Electrolysis Chamber. LOCATION=UNKNOWN GOAL=ESCAPE 01603_ Searching scrap... 01603_ Found Terrain Scanner. 01603_ Found Seismic Detector. 01603_ Found 64 Matter. 01613_ A stash of uninstalled traps is collected here! 01615_ Acquired Heavy Explosive Trap. 01634_ K-01 Serf collects debris. 01793_ G-34 Mercenary suffers critical hit (Burn). 01796_ Med. Laser destroyed. 01799_ Heat Sink melted. 01799_ Sml. Laser melted. 01799_ G-34 Mercenary destroyed. 01805_ G-47 Trooper destroyed. 01809_ Acquired 22 matter. 01822_ G-34 Mercenary destroyed. 01832_ Ion Engine destroyed. Map ----- +----------------------------------------------------+ | ##?# ##?????????????? | | ####### #?????????????? | | ##??# ######## ##?????????????? | | #??# ##?????## #??????????????? | | #??# #?????## #??????????????? | | #?## ##????# ##??????????????? | | #?# #???## #???????????????? | | ##?# ##### ## #???????????????? | | # #??##!!#### #### ##???????????????? | | ##??#% #??# #???#####????????????????? | | #### #??# #????????????????????????? | | #??# #????????????????????????? | | ### #??# ##????????????????????????? | | #?# #??# ##?????????????????????????? | | # #?# #??# ####??????????????????????????? | | # ## ### #??# #?????????????????????????????? | | ## ### #??# #??????????????????? ?????????? | | ?# #?# #??#%%####??????????????? ?????????? | | ?# #?########??#*=% #????????????? ????????? | | ?# ????????????# ###????????? %* %????????? | | ?# ????????????#### #???????? % %?????????? | | ?# ???????????????### #?????? g ????????????? | | ?# ??????????????#### #??### #??????????????? | | ?# ???????????????# ### #???????????????? | | ?# ?????????# ## r ##??????????????? | | ?# ?????????# ####???## @ #??????????????? | | ?# ???????????????????#### #?????????????? | | ?????????????????????????? #????????????? | | ??????????????????????????? ## #???????????? | | ???????????????????????????###?? #???????????? | | ?????????????????????????????????? #??????????? | | ??????????????????????????????????? #??????????? | | ????????????????????????????????????? ???????????? | | ?????????????????????????????????????????????????? | | ?????????????????????????????????????????????????? | | ?????????????????????????????????????????????????? | | ?????????????????????????????????????????????????? | | ?????????????????????????????????????????????????? | | ?????????????????????????????????????????????????? | | ?????????????????????????????????????????????????? | | ?????????????????????????????????????????????????? | | ?????????????????????????????????????????????????? | | ?????????????????????????????????????????????????? | | ?????????????????????????????????????????????????? | | ?????????????????????????????????????????????????? | | ?????????????????????????????????????????????????? | | ?????????????????????????????????????????????????? | | ?????????????????????????????????????????????????? | | | | | +----------------------------------------------------+ Best States ------------- Heat Dissipation 25 Energy Generation 10 Energy Capacity 250 Matter Stores 300 Matter Capacity 300 Sight Range 18 Terrain Scan Density 10 Evasion (%) 55 Recoil Reduction 2 Item Schematics ----------------- None Robot Schematics ------------------ None Fabricated ------------ Nothing Alien Tech Used ----------------- None Achievements -------------- None Challenges ------------ None Game ------ Seed AnalysisArmageddonDevice Manual? 0 Play Time 00:13:35 Cumulative 123.7 hours Start 2024.11.21 @ 04:35:51 End 2024.11.21 @ 04:50:12 Sessions 1 Manual Loads 0 Difficulty Rogue Special Mode None Game No. 229 Rogue 229 Adventurer 0 Explorer 0 Win Type - Total 0 Types 0/0/0/0/0/0/0/0/0 Lore% 43 Gallery% 40 Achievement% 36 Wizard Run 0 Options --------- Layout 0 ASCII 0 Keyboard 0 Movement Mouse Keybinds 0 Fullscreen 1 Font 24/Smallcaps Map View 91x25 Zoom Use 85% Tactical HUD 1 Map Filters NONE Filters NONE Steam 1 RUN: 67231402-99a5-4b8a-8efb-6ebc7a0dce53